Cogmind - Beta 12 X1 @@@ ROGUE MODE // 2022.08.03 @ 16:58:31 Player: Terminus Result: Destroyed by 8R-AWN with 8R-AWN's Boregun Performance ------------- Evolutions (0) 0 Regions Visited (3) 600 Robots Destroyed (29) 145 Value Destroyed (666) 666 Prototype IDs (23) 460 Alien Tech Used (0) 0 Bonus (300) 300 TOTAL SCORE: 2171 Bonus ------- Aligned with FarCom 300 Cogmind --------- Core Integrity 0/250 Matter 61/300 Energy 100/100 System Corruption 1% Temperature Cool (0) Movement Treading (160) Location -10/Exiles Parts ------- > --- POWER (1) -------- (None) > --- PROPULSION (2) --- Light Treads > --- UTILITY (2) ------ Improved Heat Sink Cloak of Protection > --- WEAPON (2) ------- Autogun Autogun > --- INVENTORY (5) ---- Autogun Autogun Peak State ------------ > --- POWER ------------ Improved Ion Engine > --- PROPULSION ------- Light Treads Light Treads > --- UTILITY ---------- Improved Heat Sink Cloak of Protection > --- WEAPON ----------- Autogun Autogun > --- INVENTORY -------- Autogun Autogun [Rating: 19] Favorites ----------- Power Improved Ion Engine Engine Improved Ion Engine Propulsion Light Treads Treads Light Treads Utility High-capacity Storage Unit Device Improved Heat Sink Storage High-capacity Storage Unit Protection Light Armor Plating Weapon Improved Light Cannon Ballistic Gun Autogun Ballistic Cannon Improved Light Cannon Launcher Grenade Launcher Build | -11 -10 -10 -10 ------- Run | Scr Mat Min Exi Slots Evolved . | . . . . Power . | . . . . Propulsion . | . . . . Utility . | . . . . Weapon . | . . . . Parts Attached 43 | 6 23 . 14 Power 4 | 1 3 . . Engine 4 | 1 3 . . Core . | . . . . Reactor . | . . . . Propulsion 10 | 2 6 . 2 Treads 10 | 2 6 . 2 Leg . | . . . . Wheel . | . . . . Hover . | . . . . Flight . | . . . . Utility 11 | 1 4 . 6 Device 4 | . 2 . 2 Storage 4 | 1 2 . 1 Processor . | . . . . Hackware . | . . . . Protection 3 | . . . 3 Artifact . | . . . . Weapon 18 | 2 10 . 6 Energy Gun . | . . . . Energy Cannon . | . . . . Ballistic Gun 9 | 2 3 . 4 Ballistic Cannon 8 | . 7 . 1 Launcher 1 | . . . 1 Special Weapon . | . . . . Impact Weapon . | . . . . Slashing Weapon . | . . . . Piercing Weapon . | . . . . Special Melee Weapon . | . . . . Unidentified Prototypes . | . . . . Parts Lost 7 | . . . 7 Power 1 | . . . 1 Propulsion 3 | . . . 3 Utility 3 | . . . 3 Weapon . | . . . . Highest Loss Streak 7 | . . . 7 To Critical Strikes 4 | . . . 4 Average Slot Usage (%) 96 | . 90 100 99 Engine 13 | . 13 14 13 Treads 27 | . 27 28 28 Device 11 | . 6 14 12 Storage 13 | . 14 14 12 Ballistic Gun 1 | . . . 3 Ballistic Cannon 26 | . 26 28 24 Naked Turns . | . . . . Heaviest Build 56 | 12 56 56 56 Greatest Support 40 | 40 40 40 40 Greatest Overweight (x) 3 | 3 2 1 1 Average Overweight (x) . | . . 1 . Largest Inventory Capacity 20 | 8 20 20 20 Average Capacity 17 | 7 12 20 18 Most Carried 19 | 1 11 17 19 Average Carried 12 | . 7 14 16 Final Capacity 20 | 8 20 20 5 Final Carried 16 | 1 11 16 2 Class Distribution -------------------- 100% | Mutant Dominant Class ---------------- Mutant | -10/Materials Mutant | -10/Mines Mutant | -10/Exiles Resources | -11 -10 -10 -10 ----------- Run | Scr Mat Min Exi Matter Collected 1396 | 207 714 175 300 Remotely . | . . . . Salvage Created 808 | . 511 283 14 Parts 56 | . 40 16 . Haulers Intercepted 2 | . 2 . . Recyclers Shooed 2 | . 2 . . Parts Field Recycled . | . . . . Retrieved Matter . | . . . . Parts Self-Destructed . | . . . . Prevented . | . . . . Kills | -11 -10 -10 -10 ------- Run | Scr Mat Min Exi Combat Hostiles Destroyed 25 | . 17 6 2 Guns 2 | . 2 . . Cannons 22 | . 15 6 1 AOE 1 | . . . 1 Classes Destroyed 9 | . 6 3 . Worker 2 | . 2 . . Builder 2 | . 1 1 . Hauler 2 | . 2 . . Recycler 1 | . . 1 . Operator 1 | . 1 . . Swarmer 6 | . 6 . . Grunt 13 | . 11 2 . Sentry 2 | . . 2 . Assembled 4 | . . 2 2 Best Kill Streak 4 | . 4 3 2 Combat Bots Only 3 | . 3 2 2 Max Kills in Single Turn 2 | . 2 1 1 Gunslinging . | . . . . Exploded 1 | . . . 1 Melee . | . . . . Uniques/NPCs Destroyed . | . . . . Combat | -11 -10 -10 -10 -------- Run | Scr Mat Min Exi Damage Taken 1659 | . 492 82 1085 Core 257 | . 82 . 175 Absorbed by Shields . | . . . . Regen/Repaired (Parts) 261 | . 261 . . Core Remaining (%) 100 | 100 . . . Volleys Fired 110 | . 51 11 48 Largest 2 | . 2 2 2 Hottest 78 | . 78 78 78 Shots Fired 218 | . 102 23 93 Gun 87 | . 4 . 83 Cannon 127 | . 98 23 6 Launcher 4 | . . . 4 Special . | . . . . Kinetic 214 | . 102 23 89 Thermal . | . . . . Explosive 4 | . . . 4 Electromagnetic . | . . . . Robot Hit Streak 27 | . 6 20 27 Robot Miss Streak 5 | . 5 . 4 Penetration Max . | . . . . Secondary Targets . | . . . . Shots Hit Robots 120 | . 50 15 55 Core Hits 44 | . 23 10 11 Critical Kills . | . . . . Critical Parts Destroyed . | . . . . Critical Strikes 4 | . 2 1 1 Blast 4 | . 2 1 1 Melee Attacks . | . . . . Impact . | . . . . Slashing . | . . . . Piercing . | . . . . Sneak Attacks . | . . . . Combat Hostiles . | . . . . Follow-up Attacks . | . . . . Damage Inflicted 2459 | . 1177 340 942 Guns 832 | . 52 . 780 Cannons 1486 | . 1108 319 59 Explosions 103 | . . . 103 Melee . | . . . . Ramming 38 | . 17 21 . Kinetic 2318 | . 1160 319 839 Thermal . | . . . . Explosive 103 | . . . 103 Electromagnetic . | . . . . Impact . | . . . . Slashing . | . . . . Piercing . | . . . . Highest Corruption 1 | . 1 1 1 Average Corruption 1 | . 1 1 1 Corruption Purged . | . . . . Corruption Blocked . | . . . . Effects 28 | . 7 10 11 Message Errors 7 | . 2 3 2 Matter Fused 7 | . 3 . 4 Heat Flow Errors 5 | . 2 2 1 Energy Discharges 3 | . . 1 2 Data Loss (minor) 1 | . . 1 . Data Loss (major) 1 | . . 1 . Misfires 3 | . . 1 2 Alerts 1 | . . 1 . Overload Shots . | . . . . Overflow Damage 25 | . 25 . . Projectiles 25 | . 25 . . Explosions . | . . . . Melee . | . . . . Knockbacks 7 | . 7 . . Impact . | . . . . Kinetic 7 | . 7 . . Secondary . | . . . . Self-Inflicted Damage . | . . . . Shots . | . . . . Rammed 9 | . 5 4 . Targets Rammed 10 | . 6 4 . Kicked . | . . . . Crushed 1 | . 1 . . Highest Temperature 367 | . 168 230 367 Average Temperature 78 | . 54 76 109 Received Heat Transfer 219 | . 162 57 . Effects 2 | . . . 2 Interference 2 | . . . 2 Siege Activations . | . . . . Robots Corrupted . | . . . . Combat Hostiles . | . . . . Parts Fried . | . . . . Impact Corruptions . | . . . . Robots Melted . | . . . . Combat Hostiles . | . . . . Parts Melted . | . . . . Heat Transferred . | . . . . Parts Sabotaged . | . . . . Parts Stolen . | . . . . Parts Stripped . | . . . . Power Chain Reactions . | . . . . Missiles Intercepted . | . . . . Alert | -11 -10 -10 -10 ------- Run | Scr Mat Min Exi Peak Influence 291 | . 291 158 . Initial 108 | . . 108 . Average 86 | . 155 34 . Maximum Alert Level 1 | . 1 . . Low Security (%) 85 | 100 65 100 . Level 1 14 | . 34 . . Level 2 . | . . . . Level 3 . | . . . . Level 4 . | . . . . Level 5 . | . . . . High Security . | . . . . Max Security . | . . . . Squads Dispatched 6 | . 6 . . Investigation 4 | . 4 . . Extermination . | . . . . Reinforcement 2 | . 2 . . Assault . | . . . . Garrison . | . . . . Intercept . | . . . . Searches Triggered . | . . . . Construction Impeded . | . . . . Haulers Reinforced . | . . . . Active Scanning Responses . | . . . . Cargo Convoy Interrupts . | . . . . Stealth | -11 -10 -10 -10 --------- Run | Scr Mat Min Exi Distress Signals 1 | . 1 . . Communications Jammed . | . . . . Distress Signals . | . . . . Times Spotted 42 | . 29 5 8 Peak Tracking Total 9 | . 4 2 9 Tactical Retreats 1 | . 1 . . Traps | -11 -10 -10 -10 ------- Run | Scr Mat Min Exi Traps Triggered 4 | . 4 . . Indirectly . | . . . . Trap Hack Attempts . | . . . . Triggered . | . . . . Disarmed . | . . . . Reprogrammed . | . . . . Reused . | . . . . Traps Extracted . | . . . . Installed . | . . . . Triggered . | . . . . Exploded 3 | . . . 3 Machines | -11 -10 -10 -10 ---------- Run | Scr Mat Min Exi Machines Disabled 6 | . 1 . 5 Max in Single Turn 1 | . 1 . 1 Machines Sabotaged . | . . . . Garrisons Compromised . | . . . . Overloaded Fab Kills . | . . . . Hacking | -11 -10 -10 -10 --------- Run | Scr Mat Min Exi Machines Accessed 10 | . 8 . 2 Terminals 5 | . 5 . . Fabricators . | . . . . Repair Stations 1 | . 1 . . Recycling Units 2 | . 2 . . Scanalyzers . | . . . . Garrison Access . | . . . . Total Hacks 34 | . 29 . 5 Successful 26 | . 21 . 5 Failed 8 | . 8 . . Catastrophic 1 | . 1 . . Database Lockouts . | . . . . Manual 22 | . 21 . 1 Terminals 21 | . 21 . . Fabricators . | . . . . Repair Stations 6 | . 6 . . Recycling Units 2 | . 2 . . Scanalyzers . | . . . . Garrison Access . | . . . . Terminal Hacks 13 | . 8 . 5 Record 4 | . . . 4 Robot Analysis 2 | . 2 . . Terminal Index 1 | . 1 . . Hauler Manifests 2 | . 2 . . Zone Layout 3 | . 3 . . EX-Prototype ID Bank 1 | . . . 1 Fabricator Hacks . | . . . . Repair Station Hacks 6 | . 6 . . Scan Component 3 | . 3 . . Repair 3 | . 3 . . Recycling Unit Hacks . | . . . . Scanalyzer . | . . . . Garrison Access Hacks . | . . . . Unauthorized Hacks 7 | . 7 . . Terminals 5 | . 5 . . Botnet 5 | . 5 . . Fabricators . | . . . . Repair Stations . | . . . . Recycling Units 2 | . 2 . . Tunnel 2 | . 2 . . Scanalyzers . | . . . . Garrison Access . | . . . . Data Cores Recovered . | . . . . Used . | . . . . Hacking Detections 6 | . 6 . . Full Trace Events 2 | . 2 . . Feedback Events . | . . . . Feedback Blocked . | . . . . Robot Schematics Acquired . | . . . . Robots Built . | . . . . Authchips . | . . . . Time . | . . . . Total Robot Build Rating . | . . . . Part Schematics Acquired . | . . . . Parts Built . | . . . . Authchips . | . . . . Time . | . . . . Total Part Build Rating . | . . . . Parts Repaired 3 | . 3 . . Time 84 | . 84 . . Parts Recycled . | . . . . Recycled Matter . | . . . . Retrieved Matter . | . . . . Retrieved Components . | . . . . Parts Scanalyzed . | . . . . Part Schematics Acquired . | . . . . Parts Damaged . | . . . . Bothacking | -11 -10 -10 -10 ------------ Run | Scr Mat Min Exi Used RIF Installer . | . . . . Robots Hacked . | . . . . Non-combat . | . . . . Combat . | . . . . Robot Hacks Applied . | . . . . Relay Couplers Released . | . . . . Fabnet Peak Effective % . | . . . . Robots Rewired . | . . . . Allies Hacked . | . . . . Hacks Repelled . | . . . . Allies | -11 -10 -10 -10 -------- Run | Scr Mat Min Exi Total Allies 3 | . . 3 . Largest Group 3 | . . 3 3 Highest-Rated Group 40 | . . 40 40 Highest-Rated Ally 16 | . . 16 16 Total Orders 1 | . . . 1 STAY 1 | . . . 1 Ally Attacks 17 | . . . 17 Total Damage 149 | . . . 149 Kills 2 | . . . 2 Allies Corrupted . | . . . . Allies Melted . | . . . . Intel | -11 -10 -10 -10 ------- Run | Scr Mat Min Exi Robot Analysis Total 2 | . 2 . . Derelict Logs Recovered 1 | . . 1 . Drone Launches . | . . . . Drone Recoveries . | . . . . Exploration | -11 -10 -10 -10 ------------- Run | Scr Mat Min Exi Turns Passed 4704 | 63 1503 1910 1228 Spaces Moved 1773 | 43 570 713 447 Core 28 | 28 . . . Treads 1745 | 15 570 713 447 Legs . | . . . . Wheels . | . . . . Hover . | . . . . Flight . | . . . . Fastest Speed 50 | 50 160 240 160 Average Speed 219 | 126 185 240 238 Slowest Speed 320 | 200 320 240 240 Overloaded Moves . | . . . . Propulsion Burnouts . | . . . . Robots Hopped . | . . . . Cave-ins Triggered . | . . . . Exploration Rate (%) 63 | 3 91 93 67 Regions Visited 3 Branch Regions 2 Pre-discovered Areas 3 | . 2 . 1 Known Exits Taken . | . . . . Unknown Exits Taken 3 | 1 1 1 . Scrap Searched 1 | . . 1 . Spaces Dug . | . . . . Terrain Destroyed 16 | . 3 2 11 Melee . | . . . . Projectile 6 | . 3 2 1 AOE 10 | . . . 10 Terrain Rammed . | . . . . Walls Destroyed . | . . . . Machines Disabled . | . . . . Actions | -11 -10 -10 -10 --------- Run | Scr Mat Min Exi Total 2378 | 49 907 886 536 Wait 392 | . 231 152 9 Move 1770 | 42 569 712 447 Hop . | . . . . Pick Up 31 | 1 16 6 8 Fast Attach 17 | 6 9 . 2 Attach 7 | . 3 . 4 Detach 1 | . 1 . . Swap 19 | . 11 . 8 Drop 21 | . 10 1 10 Fire 110 | . 51 11 48 Melee . | . . . . Ram . | . . . . Kick . | . . . . Crush 10 | . 6 4 . Escape Stasis . | . . . . Rewire . | . . . . Trap . | . . . . Miscellaneous . | . . . . Route ------- -11/Scrapyard -10/Materials (discovered 4 exits: [*Mat x3] / [*Min]) -10/Mines (discovered 2 exits: [*Mat] / *Exi) -10/Exiles (discovered 2 exits: Min x2) History --------- Turn | Location | Event 3 | -11/Scrapyard | Discovered new exit (range 14) 64 | -11/Scrapyard | Entered Materials 278 | -10/Materials | Discovered new exit (range 16) 310 | -10/Materials | Build established: Mutant 413 | -10/Materials | Discovered new exit (range 16) 653 | -10/Materials | Discovered new exit (range 15) 843 | -10/Materials | Discovered new exit (range 15) 1191 | -10/Materials | Repaired Lgt. Treads 1224 | -10/Materials | Repaired Imp. Light Cannon 1251 | -10/Materials | Repaired Lgt. Treads 1567 | -10/Materials | Entered Mines 1613 | -10/Mines | Found a hidden stash of uninstalled traps 1739 | -10/Mines | Assembled infested the area 2251 | -10/Mines | Joined a pair of Derelicts in attacking an 0b10 outpost 2662 | -10/Mines | Discovered new exit (range 10) 2940 | -10/Mines | Assisted by bots powering up and referring to "LRC-V3" 3468 | -10/Mines | Deemed a non-threat by the Exiles lab entrance 3468 | -10/Mines | Discovered new exit (range 5) 3477 | -10/Mines | Entered Exiles 3477 | -10/Exiles | Accompanied by 3 allies 3478 | -10/Exiles | Identified exit to Mines 3538 | -10/Exiles | Met 8R-AWN 3652 | -10/Exiles | Met EX-HEX 3765 | -10/Exiles | Met EX-DEC 3803 | -10/Exiles | Learned location of Zion (-7) 4200 | -10/Exiles | Met EX-BIN 4233 | -10/Exiles | Aligned with FarCom system 4236 | -10/Exiles | Given EX-Vault access code 4296 | -10/Exiles | Opened EX-Vault 4332 | -10/Exiles | Found Cloak of Protection 4383 | -10/Exiles | Warned to stay clear of 0b10 Research branches 4504 | -10/Exiles | Attacked by the Exiles 4606 | -10/Exiles | Core integrity fell below 50% 4641 | -10/Exiles | Core integrity fell below 20% 4705 | -10/Exiles | Destroyed by 8R-AWN with 8R-AWN's Boregun Last Messages --------------- 04688_ Penetrated by HV Slug. 04688_ HV Slug penetrates Earth. 04690_ Overheating: System interference. 04690_ Autogun temporarily disabled. 04692_ Penetrated by HV Slug. 04692_ Critical hit (Destroy). 04692_ Imp. Ion Engine destroyed. 04692_ HV Slug penetrates Earth. 04693_ Earth collapses. 04696_ Penetrated by HV Slug. 04696_ HV Slug penetrates Earth. 04696_ Penetrated by HV Slug. 04696_ HV Slug penetrates Earth. 04700_ Penetrated by HV Slug. 04700_ Critical hit (Destroy). 04700_ Lgt. Treads destroyed. 04700_ HV Slug penetrates Earth. 04700_ Penetrated by HV Slug. 04700_ HV Slug penetrates Earth. 04705_ Penetrated by HV Slug. Map ----- +----------------------------------------------------+ | ?????????????????????????????????????????????????? | | ?????????????????????????????????????????????????? | | ?????????????????????????????????????????????????? | | ?????????????????????????????????????????????????? | | ?????????????????????????????????????????????????? | | ?????????????????????????????????????????????????? | | ??????????????>??????????????????????????????????? | | ?????????????????????????????????????????????????? | | ?????????????????????????????????????????????????? | | ?????????????????????????????????????????????????? | | ?????????????????????????????????????????????????? | | ??????????????? ????????????????????????????????? | | ??????????????? ??????????????#######??????????? | | ?????????????? ######???????#!!! "#??????????? | | ?????????????? #""#??????# "#??????????? | | ??????????????? #?????# #??????????? | | ???????????????#" "????## "#??????????? | | ???????????????"" #####" ""#??????????? | | ?????????????????# ##" ""#??????????? | | ??????????????????# # " #????????????? | | ?????????????????????# ###??????????? | | ?????????????????????#### = ;#??????????? | | ????????????????????####### *%%% ## #???????? | | ??????????????????###;;;## !%===% # #??????? | | ?????????????????## !!"" ]!! [ % #??????? | | ?????????? ; @]!g ;## ####???# | | ?????????????????## !!] ####" """##### | | ??????????????????#! ! *] ##??#" | | ????????????????# ; ! ###???#"# | | ?????????????# ;#########?????#### % | | ??????????? ###??????????????????### | | ????????????#?????????????????????????##" | | ????????????????????????????????????????## | | ?????????????????????????????????????????## | | ??????????????????????????????????????????##" | | ???????????????????????????????????????????#"" | | ??????????????????????????????????????????##" | | ??????????????????????????????????????????#"" | | ??????????????????????????????????????????#""" | | ??????????????????????????????????????????""" | | ??????????????????????????????????????????""" | | ??????????????????????????????????????????"" | | ??????????????????????????????????????????""" | | ??????????????????????????????????????????"" | | ??????????????????????????????????????????#"" | | ??????????????????????????????????????????#"""" | | ???????????????????????????????????????????# | | ????????????????????????????????????????????" | | ????????????????????????????????????????????"""" | | ?????????????????????????????????????????????" | +----------------------------------------------------+ Best States ------------- Heat Dissipation 39 Energy Generation 12 Energy Capacity 265 Matter Stores 300 Matter Capacity 300 Sight Range 16 Terrain Scan Density 10 Armor Coverage 300 Evasion (%) 50 Recoil Reduction 2 Item Schematics ----------------- None Robot Schematics ------------------ None Fabricated ------------ Nothing Alien Tech Used ----------------- None Achievements -------------- None Challenges ------------ None Game ------ Seed WardroneGravitonArchive Manual? 0 Play Time 00:19:40 Cumulative 1551.3 hours Start 2022.08.03 @ 16:43:38 End 2022.08.03 @ 16:58:31 Sessions 1 Manual Loads 0 Difficulty Rogue Special Mode None Game No. 545 Rogue 545 Adventurer 0 Explorer 0 Win Type - Total 111 Types 24/12/45/6/1/2/19/1/1 Lore% 97 Gallery% 97 Achievement% 86 Wizard Run 0 Options --------- ASCII 0 Keyboard 0 Movement Numpad Keybinds 0 Fullscreen 1 Font 18/SmallcapsGlow Map View 76x50 Tactical HUD 1 Map Filters NONE Filters NONE Steam 1 RUN: ad9ed63d-d2b9-411b-9870-c375f4ede0f6